{"text_format":"1","workbook":"xlsx","n_sheets":5,"sheets":["Celková cena","Ostatní informace","PC","SaMa","Řadič"],"not_rendered":{"charts":0,"images":0,"macros":1,"external_links":0,"defined_names":2,"comments":0,"pivot_tables":0},"unopened":[],"bounds":{"document_bytes":16777216,"sheet_cells":100000,"rows_first":2000,"rows_last":500,"rows_between":2000,"halvings":0,"cell_chars":16384,"cell_head_chars":4096},"cells_cut":0,"cells_raw":0,"read":"whole","date_system":"1900"}

{"sheet":"Celková cena","index":0,"n_rows":34,"n_cols":13,"rows_kept":34,"cut":false,"hidden":false,"merged":[[5,2,5,4],[6,2,6,4],[33,1,33,4]]}
[null,null,null,null,null,null,null,null,null,null,null,null,1]
[]
[]
[]
[]
[null,null,"Dynamický nákupní systém"]
[null,null,{"$f":"VLOOKUP($M$1,Řadič!$A$2:$B$4,2,FALSE)","v":"Pěstební činnosti včetně dodávky sadebního materiálu"}]
[]
[null,null,"kód zakázky:",180562,null,null,null,null,null,null,null,null,{"$f":"IF(AND(ISNUMBER(D9),D9<>\"\"),1,0)","v":1}]
[null,null,"název zakázky:","Výzva k podání nabídek č.111 v kategorii 11 - Pěstební činnosti na LS Křivoklát"]
[null,null,"číslo OJ:",180]
[null,null,"název OJ:","LS Křivoklát"]
[null,null,"číslo OŘ/LZ:",46]
[null,null,"název OŘ/LZ:","OŘ severní Čechy"]
[null,null,"výměra [ha]:",19700]
[]
[null,null,null,"Obchodní firma/název:"]
[null,null,null,"Sídlo/místo podnikání:"]
[null,null,null,"Právní forma:"]
[null,null,null,"IČO:"]
[null,null,null,"DIČ:"]
[null,null,null,"Spisová značka ve veřejném rejstříku (je-li relevantní)"]
[null,null,null,"Bankovní spojení:"]
[null,null,null,"Osoba oprávněná zastupovat účastníka zadávacího řízení:"]
[null,null,null,"Telefon:"]
[null,null,null,"E-mail účastníka zadávacího řízení pro elektronickou komunikaci:"]
[null,null,null,"Kontaktní osoba účastníka v zadávacím řízení:"]
[null,null,null,"Telefon na kontaktní osobu:"]
[null,null,null,"E-mail na kontaktní osobu:"]
[]
[null,null,null,null,"Nabídková cena (NCCELKEM) bez DPH"]
[null,null,null,null,{"$f":"ROUND(PC!$I$2,0)+ROUND(SaMa!$J$2,0)","v":0}]
[]
[null,"Čestné PROHLÁŠENÍ O NEEXISTENCI STŘETU ZÁJMŮ dle ust. § 4b zákona č. 159/2006 Sb., o střetu zájmů, ve znění pozdějších předpisů (dále jen \"zákon o střetu zájmů\") - doklad k prokázání splnění zadávací podmínky stanovené zadavatelem v článku 5.3. ZD\n\nDodavatel tímto čestně prohlašuje, že:\n\n- není obchodní společností, ve které veřejný funkcionář uvedený v ust. § 2 odst. 1 písm. c) zákona o střetu zájmů (tj. člen vlády nebo vedoucí jiného ústředního správního úřadu, v jehož čele není člen vlády) nebo jím ovládaná osoba vlastní podíl představující alespoň 25 % účasti společníka v obchodní společnosti;\n\n- poddodavatel, prostřednictvím kterého dodavatel prokazuje kvalifikaci (existuje-li takový), není obchodní společností, ve které veřejný funkcionář uvedený v ust. § 2 odst. 1 písm. c) zákona o střetu zájmů (tj. člen vlády nebo vedoucí jiného ústředního správního úřadu, v jehož čele není člen vlády) nebo jím ovládaná osoba vlastní podíl představující alespoň 25 % účasti společníka v obchodní společnosti."]

{"sheet":"Ostatní informace","index":1,"n_rows":41,"n_cols":3,"rows_kept":41,"cut":false,"hidden":false,"merged":[]}
[null,"Ostatní informace"]
[]
[null,"Název firmy:",{"$f":"'Celková cena'!$E$17","v":0}]
[null,"IČO:",{"$f":"'Celková cena'!$E$20","v":0}]
[null,"Kód zakázky:",{"$f":"'Celková cena'!$D$9","v":180562}]
[null,"Název OJ:",{"$f":"'Celková cena'!$D$12","v":"LS Křivoklát"}]
[]
[]
[]
[]
[null,"Lesní správa Křivoklát "]
[null,"Práce mohou probíhat na všech  revírech LS Křivoklát."]
[]
[null,"Kontaktní osoba: Ing. Jiří Pour"]
[]
[]
[null,"SÚJ se nachází v CHKO Křivoklátsko, CHKO Český kras  a Ptačí oblasti Křivoklátsko. "]
[]
[]
[]
[null,"Během veškerých prací je nutno respektovat ustanovení  níže uvedených zákonných opatření:"]
[null,"• Zákon č. 114/1992 Sb.  o ochraně přírody a krajjiny, ve znění pozdějších předpisů"]
[null,"• Zákon č. 289/1995 Sb., o lesích a o změně a do plnění některých zákonů (lesní zákon), ve znění poz. před."]
[null,"• Zákon č. 149/2003 Sb.  o obchodu s reprodukčním materiálem lesních dřevin, ve znění poz. předpisů"]
[null,"• Vyhláška č. 456/2021 Sb., kterou se stanoví podrobnosti o přenosu semen a sazenic lesních dřevin "]
[null,"• Zákon č. 254/2001 Sb. o vodách a o změně některých zákonů (vodní zákon), ve znění pozdějších"]
[null,"předpisů "]
[null,"Stručný popis technologie:"]
[null,16210,"v případě použití zemního jamkovače - min. průměr vrtáku 15cm."]
[null,16610,"v případě použití zemního jamkovače - min. průměr vrtáku 15cm."]
[null,22130,"Upravená výška 180cm, počet ráhen 10, navíc příčná vzpěra zavětrování do tvaru \"A\""]
[null,23120,"účinná látka -  křemitý písek, destilační zbytky tuků  či po dohodě s LČR jiná aktuálně "]
[null,null,"schválená účinná látka  s obdobným účinkem."]
[null,24430,"účinná látka -  glyphosát, či po dohodě s LČR jiná aktuálně schválená účinná látka "]
[null,null,"s obdobným účinkem."]
[null,"Podvýkony budou prováděny v souladu s přílohou č. P3 Smlouvy  o dílo. "]
[null,"Z důvodů omezení daných certifikací lesů PEFC je vyloučeno použití přípravků pro ochranu rostlin"]
[null," s účinnými látkami zařazenými do kategorie 1A a 1B dle klasifikace WHO, "]
[null," pokud existuje nákladově srovnatelný alternativní přípravek s jinou účinnou látkou."]
[null,"Jakékoliv použití vyloučeného přípravku, jakož i jeho náhrada je podmíněno písemným souhlasem"]
[null," Lesů ČR.","Použité přípravky musí být uvedeny v Úředním registru přípravků na ochranu rostlin "]

{"sheet":"PC","index":2,"n_rows":31,"n_cols":16,"rows_kept":31,"cut":false,"hidden":false,"merged":[]}
[null,null,"Ceník a sumář pěstebních činností (část A - PČ)"]
[null,null,null,null,null,"Nabízená cena pěstebních činností (CPČ):",null,null,{"$f":"SUMPRODUCT($F$12:$F$31,$H$12:$H$31)","v":0}]
[null,null,"Název firmy:",{"$f":"'Celková cena'!$E$17","v":0}]
[null,null,"IČO:",{"$f":"'Celková cena'!$E$20","v":0}]
[null,null,"Kód zakázky:",{"$f":"'Celková cena'!$D$9","v":180562}]
[null,null,"Název OJ:",{"$f":"'Celková cena'!$D$12","v":"LS Křivoklát"}]
[]
[]
[]
[null,null,null,null,null,null,null,null,null,null,null,null,null,null,null,{"$f":"COUNTIF($P$12:$P$31,TRUE)","v":20}]
[null,null,"CK","Název CK","MJ","Počet MJ","Maximální cena\n(Kč/MJ)","Cena\n(Kč/MJ)","Poznámka",null,null,null,null,null,null,"Struktura"]
[null,null,11010,"Úklid a pálení klestu - jehličnatého + listnatého","m3",6244,100,null,null,null,null,null,null,null,null,true]
[null,null,11110,"Úklid klestu (bez pálení) - ručně i mech. - jehl.+list.","m3",3050,95,null,null,null,null,null,null,null,null,true]
[null,null,11410,"Drcení klestu","m3",2400,250,null,null,null,null,null,null,null,null,true]
[null,null,16210,"Sadba a podsadba do nepřipravené půdy - ruční + mech. - jamková","1000 ks",169.51,9000,null,null,null,null,null,null,null,null,true]
[null,null,16220,"Sadba a podsadba do nepřipravené půdy - ruční + mech. - štěrbinová","1000 ks",8.65,5000,null,null,null,null,null,null,null,null,true]
[null,null,16610,"Opak. sadba a podsadba do nepřipravené půdy - ruční + mech. - jamková","1000 ks",10.53,9500,null,null,null,null,null,null,null,null,true]
[null,null,22130,"Oplocenky z nov.mat.-dřevěné-Koliba vysoké 220/3","km",6.71,190000,null,null,null,null,null,null,null,null,true]
[null,null,22310,"Rozebírání a likvid. oplocenek-dřevěné-do 180 cm vč","km",1,15000,null,null,null,null,null,null,null,null,true]
[null,null,22980,"Údržba a opravy oplocenek","km",2,17000,null,null,null,null,null,null,null,null,true]
[null,null,23120,"Nátěr nebo postřik kultur repelenty-zimní","1000 ks",356.58,1100,null,null,null,null,null,null,null,null,true]
[null,null,24030,"Ožínání - ručně + mech. - celoplošně","ha",21.48,13000,null,null,null,null,null,null,null,null,true]
[null,null,24430,"Chemická ochrana MLP proti buřeni - celoplošně","ha",0.49,7000,null,null,null,null,null,null,null,null,true]
[null,null,24510,"Odstranění škodících dřevin - ručně + mech.","ha",3,11000,null,null,null,null,null,null,null,null,true]
[null,null,31010,"Prostřihávky - jehličnaté i listnaté - ručně + mech.","ha",1,15000,null,null,null,null,null,null,null,null,true]
[null,null,31310,"Prořezávky - jehlič. + list. - ručně + mech","ha",37.630000000000003,13500,null,null,null,null,null,null,null,null,true]
[null,null,58110,"Ruční práce","hod",140,250,null,null,null,null,null,null,null,null,true]
[null,null,58120,"Práce s JMP","hod",60,350,null,null,null,null,null,null,null,null,true]
[null,null,58130,"Práce s traktorem","hod",33,800,null,null,null,null,null,null,null,null,true]
[null,null,58140,"Práce s křovinořezem","hod",15,350,null,null,null,null,null,null,null,null,true]
[null,null,58160,"Práce se zádovým postřikovačem","hod",10,350,null,null,null,null,null,null,null,null,true]

{"sheet":"SaMa","index":3,"n_rows":34,"n_cols":16,"rows_kept":34,"cut":false,"hidden":false,"merged":[]}
[null,"Ceník a sumář pěstebních činností (část B - SaMa)"]
[null,null,null,null,null,null,"Nabízená cena sad. materiálu (CSaMa):",null,null,{"$f":"SUMPRODUCT($G$12:$G$34,$I$12:$I$34)","v":0}]
[null,"Název firmy:",{"$f":"'Celková cena'!$E$17","v":0}]
[null,"IČO:",{"$f":"'Celková cena'!$E$20","v":0},null,null,null,null,null,null,null,null,null,null,null,null,"Struktura"]
[null,"Kód zakázky:",{"$f":"'Celková cena'!$D$9","v":180562},null,null,null,null,null,null,null,null,null,null,null,null,true]
[null,"Název OJ:",{"$f":"'Celková cena'!$D$12","v":"LS Křivoklát"},null,null,null,null,null,null,null,null,null,null,null,null,false]
[]
[null,"Ceny sadebního materiálu jsou uvedeny se započtením nákladů na dopravu a nákladů na manipulaci se sadebním materiálem."]
[null,""]
[null,null,null,null,null,null,null,null,null,null,null,null,null,null,null,{"$f":"COUNTIF($P$12:$P$34,1)","v":23}]
[null,"CK","Dřevina","Typ","Třída*","Obal**","Množství \n[tis.ks]***","Maximální cena\n [Kč/tis.ks]***","Cena\n [Kč/tis.ks]***","Poznámka",null,null,null,null,null,"Struktura"]
[null,1155,"SM","semenáčky","5 mm","  SAD",6.4,12000,null,null,null,null,null,null,null,{"$f":"IF(AND(ISNUMBER($B12),OR(LEN($B12)=4,LEN($B12)=5)),1,0)","v":1}]
[null,1260,"SM","sazenice","6 mm","  PRK",1.1000000000000001,10500,null,null,null,null,null,null,null,{"$f":"IF(AND(ISNUMBER($B13),OR(LEN($B13)=4,LEN($B13)=5)),1,0)","v":1}]
[null,10260,"JD","sazenice","6 mm","  PRK",5.0999999999999996,12500,null,null,null,null,null,null,null,1]
[null,20135,"BO","semenáčky","3 mm","  SAD",1.2,8000,null,null,null,null,null,null,null,1]
[null,20145,"BO","semenáčky","4 mm","  SAD",7.45,10000,null,null,null,null,null,null,null,1]
[null,30145,"MD","semenáčky","4 mm","  SAD",0.38,12000,null,null,null,null,null,null,null,1]
[null,40250,"DB","sazenice","5 mm","  PRK",3.6,7000,null,null,null,null,null,null,null,1]
[null,42155,"DBZ","semenáčky","5 mm","  SAD",26.8,14000,null,null,null,null,null,null,null,1]
[null,42250,"DBZ","sazenice","5 mm","  PRK",34.299999999999997,8000,null,null,null,null,null,null,null,1]
[null,42260,"DBZ","sazenice","6 mm","  PRK",34.25,8500,null,null,null,null,null,null,null,1]
[null,42390,"DBZ","poloodrostky",9,"  PRK",1.55,15000,null,null,null,null,null,null,null,1]
[null,50250,"BK","sazenice","5 mm","  PRK",33.229999999999997,9000,null,null,null,null,null,null,null,1]
[null,50260,"BK","sazenice","6 mm","  PRK",13.9,10000,null,null,null,null,null,null,null,1]
[null,53260,"KL","sazenice","6 mm","  PRK",2.25,7088,null,null,null,null,null,null,null,1]
[null,53390,"KL","poloodrostky",9,"  PRK",0.2,12000,null,null,null,null,null,null,null,1]
[null,60260,"JL","sazenice","6 mm","  PRK",1.05,10000,null,null,null,null,null,null,null,1]
[null,67145,"BRK","semenáčky","4 mm","  SAD",0.35,22000,null,null,null,null,null,null,null,1]
[null,74145,"TR","semenáčky","4 mm","  SAD",1.71,15000,null,null,null,null,null,null,null,1]
[null,74260,"TR","sazenice","6 mm","  PRK",0.3,11000,null,null,null,null,null,null,null,1]
[null,80160,"LP","semenáčky","6 mm","  PRK",1.2,9000,null,null,null,null,null,null,null,1]
[null,80195,"LP","semenáčky","9 mm","  SAD",5.22,14000,null,null,null,null,null,null,null,1]
[null,80270,"LP","sazenice","7 mm","  PRK",6.05,9000,null,null,null,null,null,null,null,1]
[null,83240,"OL","sazenice","4 mm","  PRK",1.1000000000000001,8000,null,null,null,null,null,null,null,1]

{"sheet":"Řadič","index":4,"n_rows":83,"n_cols":16,"rows_kept":83,"cut":false,"hidden":true,"merged":[]}
["HELP","DRUH DNS",null,"List SaMa",null,null,null,"List SaMa",null,null,null,"List SaMa"]
[3,"Pěstební činnosti",null,"Kod","Nazev","Zkr",null,"kód","zkratka","popis",null,"Kód","Zkratka","Název 1","Název 2","Použitelnost do … (včetně)"]
[2,"Dodávka sadebního materiálu",null,1,"Smrk ztepilý","SM",null,0,"osivo","semena, osivo",null,0,"  PRK","Prostokoř.","Prostokořenný sadební materiál","neomezeno"]
[1,"Pěstební činnosti včetně dodávky sadebního materiálu",null,2,"Smrk pichlavý","SMP",null,1,"semenáčky","semenáčky",null,1,"  RCK","Rašelinocelulozový kelímek","Rašelinocelulozový kelímek","neomezeno"]
[null,null,null,3,"Smrk černý","SMC",null,2,"sazenice","sazenice",null,2,"  PES-Zákaz","Polyetylénový sáček","Polyetylénový sáček",2005]
[null,null,null,4,"Smrk sivý","SMS",null,3,"poloodrostky","poloodrostky",null,3," NIS-Zákaz","Rolovaný obal Nisula","Rolovaný obal Nisula",2002]
[null,null,null,5,"Smrk omorika","SMO",null,4,"semenáč.nálet","semenáčky z náletu",null,4,"  JFF","Jiffy tableta","Jiffy tableta","Neomezeno"]
[null,null,null,6,"Smrk engelmanův","SME",null,5,"jinak.specif.","smluvně specifikovaný sadební materiál",null,5,"  SAD","Plastový sadbovač","Plastový sadbovač","Neomezeno"]
[null,null,null,9,"Smrky ostatní","SMX",null,6,"řízkovanec","řízkovanec",null,6,"  JUT","Jutový sáček","Jutový sáček","Neomezeno"]
[null,null,null,10,"Jedle bělokorá","JD",null,7,"nest.sazenice","nestandardní sazenice",null,9,"  OST","Nespecifikovaný obal","Nespecifikovaný obal","dle přílohy P11 OS"]
[null,null,null,11,"Jedle obrovská","JDO",null,8,"nest.semenáčky","nestandardní semenáčky"]
[null,null,null,12,"Jedle ojíněná","JDJ",null,9,"nest.ostatní","nestandard ostatní "]
[null,null,null,13,"Jedle kavkazská","JDK"]
[null,null,null,14,"Jedle vznešná","JDV"]
[null,null,null,16,"Jedle ostatní","JDX"]
[null,null,null,18,"Douglaska tisolistá","DG"]
[null,null,null,20,"Borovice lesní","BO"]
[null,null,null,21,"Borovice černá","BOC"]
[null,null,null,22,"Borovice banksovka","BKS"]
[null,null,null,23,"Vejmutovka","VJ"]
[null,null,null,24,"Borovice-limba","LMB"]
[null,null,null,25,"Borovice pokroucená","BOP"]
[null,null,null,27,"Borovice ostatní","BOX"]
[null,null,null,28,"Kosodřevina","KOS"]
[null,null,null,29,"Borovice blatka","BL"]
[null,null,null,30,"Modřín evropský","MD"]
[null,null,null,31,"Modříny ostatní","MDX"]
[null,null,null,33,"Tis obecný","TS"]
[null,null,null,35,"Jalovec obený","JAL"]
[null,null,null,39,"Ostatní jehličnany","JX"]
[null,null,null,40,"Dub letní","DB"]
[null,null,null,41,"Dub slavonský","DBS"]
[null,null,null,42,"Dub zimní","DBZ"]
[null,null,null,43,"Dub červený","DBC"]
[null,null,null,44,"Dub pýřitý","DBP"]
[null,null,null,45,"Dub bahenní","DBB"]
[null,null,null,47,"Duby ostatní","DBX"]
[null,null,null,48,"Dub slovenský - cer","CER"]
[null,null,null,50,"Buk lesní","BK"]
[null,null,null,51,"Habr obecný","HB"]
[null,null,null,52,"Javor mléčný","JV"]
[null,null,null,53,"Javor klen","KL"]
[null,null,null,54,"Javor babyka","BB"]
[null,null,null,55,"Javor jasanolistý","JVJ"]
[null,null,null,56,"Javory ostatní","JVX"]
[null,null,null,57,"Jasan ztepilý","JS"]
[null,null,null,58,"Jasan americký","JSA"]
[null,null,null,59,"Jasan úzkolistý","JSU"]
[null,null,null,60,"Jilm habrolistý","JL"]
[null,null,null,61,"Jilm horský","JLH"]
[null,null,null,62,"Jilm vaz","JLV"]
[null,null,null,63,"Akát","AK"]
[null,null,null,64,"Bříza bradavičnatá","BR"]
[null,null,null,65,"Bříza pýřitá","BRP"]
[null,null,null,66,"Jeřáb ptačí","JR"]
[null,null,null,67,"Jeřáb břek","BRK"]
[null,null,null,68,"Jeřáb muk","MK"]
[null,null,null,70,"Ořešák královský","OR"]
[null,null,null,71,"Ořešák černý","ORC"]
[null,null,null,72,"Platan javorolistý","PL"]
[null,null,null,74,"Třešeň ptačí","TR"]
[null,null,null,75,"Střemcha pozdní","STR"]
[null,null,null,76,"Hrušeň","HR"]
[null,null,null,77,"Jabloň","JB"]
[null,null,null,79,"Ostat.listnáče tvrdé","LTX"]
[null,null,null,80,"Lípa srdčitá","LP"]
[null,null,null,81,"Lípa velkolistá","LPV"]
[null,null,null,82,"Lípa stříbrná","LPS"]
[null,null,null,83,"Olše lepkavá","OL"]
[null,null,null,84,"Olše šedá","OLS"]
[null,null,null,85,"Olše zelená","OLZ"]
[null,null,null,86,"Osika","OS"]
[null,null,null,87,"Topol bílý","TP"]
[null,null,null,88,"Topol černý","TPC"]
[null,null,null,89,"Ost.topoly nešlechť.","TPX"]
[null,null,null,90,"Topoly šlechtěné","TPS"]
[null,null,null,91,"Jíva","JIV"]
[null,null,null,92,"Vrba bílá,v. křehká","VR"]
[null,null,null,93,"Jírovec maďal","KS"]
[null,null,null,94,"Kaštanovník jedlý","KJ"]
[null,null,null,95,"Pajasan žláznatý","PJ"]
[null,null,null,97,"Ostat.listnáče měkké","LMX"]
[null,null,null,98,"Keře","KR"]